bitfinex/quotes_ETHUSD_20220305
["timestamp","ask_amount","ask_price","bid_price","bid_amount"]
[1646484829834,0.003387,2662.7,2662.5,0.01049715]
[1646484830533,0.003387,2662.7,2662.2,0.00242235]
[1646484830733,1.1101237,2662.3,2662.1,7.47]
[1646484831436,0.003387,2662.7,2662.1,7.47]
[1646484831835,0.003387,2662.7,2662.1,7.47132701]
[1646484832283,0.003387,2662.7,2662.1,8.47132701]
[1646484832484,1.18628286,2662.7,2662.2,0.8924527]
[1646484832883,1.53984481,2662.6,2662.2,0.8924527]
[1646484833083,1.53984481,2662.6,2662.3,0.00132691]
[1646484833688,1.53984481,2662.6,2662.2,0.84377961]
[1646484833886,1.53984481,2662.6,2662.1,7.47]
[1646484834186,1.53984481,2662.6,2662.3,0.00283699]
[1646484835187,1.53984481,2662.6,2662.1,7.47]
[1646484835386,1.08991405,2662.3,2662.1,7.47]
[1646484836235,0.003387,2662.7,2662.1,7.47]
[1646484836633,0.003387,2662.7,2662.1,7.47136788]
[1646484837135,0.003387,2662.7,2662.1,8.47136788]
[1646484837538,0.003387,2662.7,2662.3,0.93753075]
[1646484837739,1.5432973,2662.7,2662.3,0.93753075]
[1646484837938,0.003387,2662.7,2662.3,0.94041061]
[1646484838841,0.003387,2662.7,2662.3,0.93753075]
[1646484839041,0.003387,2662.7,2662.4,0.00287602]
[1646484840081,0.003387,2662.7,2662.3,0.93753075]
[1646484840286,0.003387,2662.7,2662.4,0.00287605]
[1646484841186,0.003387,2662.7,2662.3,0.93753075]
[1646484841387,0.003387,2662.7,2662.4,0.00136295]
[1646484842388,0.003387,2662.7,2662.3,0.93753075]
[1646484842588,0.003387,2662.7,2662.4,0.00282468]
[1646484843629,0.003387,2662.7,2662.3,0.93753075]
[1646484843829,0.003387,2662.7,2662.4,3.50282468]
[1646484844228,0.003387,2662.7,2662.4,4.50282468]
[1646484844831,0.003387,2662.7,2662.5,0.377]
[1646484845031,0.003387,2662.7,2662.6,3.952]
[1646484845231,0.003387,2662.7,2662.6,4.952]
[1646484846933,0.003387,2662.7,2662.6,1.452]
[1646484847182,0.003387,2662.7,2662.6,0.452]
[1646484847388,0.003387,2662.7,2662.4,1.00282817]
[1646484847588,0.003387,2662.7,2662.4,4.50282817]
[1646484847890,0.003387,2662.7,2662.4,0.00282817]
[1646484848488,0.003387,2662.7,2662.2,0.00242235]
[1646484848788,0.003387,2662.7,2662.0,2.3425]
[1646484848789,0.90535857,2662.5,2662.4,0.00282811]
[1646484848990,2.44495947,2662.5,2662.4,0.00282811]
[1646484849590,2.44495947,2662.5,2662.1,0.00242235]
[1646484849789,2.44495947,2662.5,2661.9,0.25]
[1646484849790,0.90535857,2662.5,2661.9,3.50242235]
[1646484849991,0.90535857,2662.5,2662.3,0.00282787]
[1646484850290,0.003387,2662.7,2662.3,0.00282787]
[1646484850789,1.54322792,2662.7,2661.9,5.89399235]
[1646484851034,1.54322792,2662.7,2662.4,0.00282784]
[1646484851433,0.003387,2662.7,2662.4,0.00282784]
[1646484851936,0.003387,2662.7,2662.4,1.10447539]
[1646484852133,0.003387,2662.7,2662.4,1.10164755]
[1646484852337,0.003387,2662.7,2662.4,0.00282787]
[1646484853140,0.003387,2662.7,2662.3,3.5]
[1646484853542,0.003387,2662.7,2662.4,0.0028279]
[1646484854342,0.00246714,2662.7,2662.5,0.98430678]
[1646484854546,0.00246714,2662.7,2662.6,3.5]
[1646484854786,0.00246714,2662.7,2662.6,4.952]
[1646484855185,0.00246714,2662.7,2662.6,5.329]
[1646484855791,6.714e-05,2662.7,2662.6,18.1276976]
[1646484856187,6.714e-05,2662.7,2662.6,16.97946141]
[1646484856387,6.714e-05,2662.7,2662.6,5.51946141]
[1646484856588,6.714e-05,2662.7,2662.6,5.329]
[1646484856788,6.714e-05,2662.7,2662.6,6.24857534]
[1646484856987,6.714e-05,2662.7,2662.6,1.452]
[1646484857391,6.714e-05,2662.7,2662.6,3.952]
[1646484857591,6.714e-05,2662.7,2662.5,2.2209]
[1646484857592,6.714e-05,2662.7,2662.5,1.2209]
[1646484857792,6.714e-05,2662.7,2662.4,1.00282794]
[1646484857992,6.714e-05,2662.7,2662.4,1.0]
[1646484858192,6.714e-05,2662.7,2662.3,1.1684]
[1646484858441,6.714e-05,2662.7,2662.4,0.00282791]
[1646484858631,1.10561307,2662.7,2662.4,0.00282791]
[1646484858833,6.714e-05,2662.7,2662.4,0.00282791]
[1646484859232,6.714e-05,2662.7,2662.2,0.00242235]
[1646484859634,6.714e-05,2662.7,2662.4,0.00282788]
[1646484860034,6.714e-05,2662.7,2662.4,1.88137788]
[1646484860434,6.714e-05,2662.7,2662.4,5.37855]
[1646484860836,6.714e-05,2662.7,2662.4,6.38137787]
[1646484861635,6.714e-05,2662.7,2662.4,6.37855]
[1646484862037,6.714e-05,2662.7,2662.4,6.38137787]
[1646484862691,6.714e-05,2662.7,2662.4,4.50282787]
[1646484862890,6.714e-05,2662.7,2662.4,4.5]
[1646484863090,1.20587699,2662.6,2662.4,1.0]
[1646484863291,6.714e-05,2662.7,2662.2,4.42199769]
[1646484863292,6.714e-05,2662.7,2662.2,1.00242235]
[1646484863692,6.714e-05,2662.7,2662.2,3.50242235]
[1646484864190,6.714e-05,2662.7,2662.2,4.50242235]
[1646484864393,6.714e-05,2662.7,2662.3,0.00283065]
[1646484864593,1.53981091,2662.7,2662.3,0.00283065]
[1646484864792,6.714e-05,2662.7,2662.3,0.00283065]
[1646484865192,6.714e-05,2662.7,2662.2,0.00242235]
[1646484865392,1.08485298,2662.4,2662.0,4.42199769]
[1646484865593,1.08485298,2662.4,2662.1,0.00242235]
[1646484865794,1.08485298,2662.4,2662.0,0.01132422]
[1646484866447,1.08485298,2662.4,2661.8,0.92199769]
[1646484866845,1.08485298,2662.4,2662.1,0.00283078]
[1646484867850,6.714e-05,2662.7,2661.9,4.5]
[1646484868051,6.714e-05,2662.7,2662.0,0.00242235]
[1646484869453,1.16902829,2662.2,2661.8,0.00242235]
[1646484869682,6.714e-05,2662.7,2661.7,7.86877441]
[1646484869883,6.714e-05,2662.7,2661.8,0.00242235]
[1646484870684,6.714e-05,2662.7,2661.8,0.92199769]
[1646484870884,6.714e-05,2662.7,2662.0,1.15191604]
[1646484870885,0.91881504,2662.7,2662.0,1.15191604]
[1646484871085,1.53988024,2662.6,2662.0,1.15433839]
[1646484871684,1.53988024,2662.6,2662.0,1.15733736]
[1646484872589,1.53988024,2662.6,2662.0,1.15433839]
[1646484872792,1.53988024,2662.6,2662.1,3.5]
[1646484872990,1.43988024,2662.6,2662.1,3.5]
[1646484873190,0.91881504,2662.7,2662.0,4.65721169]
[1646484873443,0.91881504,2662.7,2662.0,1.15721169]
[1646484873634,0.91881504,2662.7,2662.0,4.65721169]
[1646484873835,0.91881504,2662.7,2662.0,1.15433839]
[1646484874033,0.91881504,2662.7,2662.0,4.65721172]
[1646484874437,0.91881504,2662.7,2662.0,1.15721172]
[1646484875035,0.91881504,2662.7,2662.0,1.15433839]
[1646484875236,0.91881504,2662.7,2662.0,1.15721172]
[1646484875439,0.91881504,2662.7,2662.0,4.65721172]
[1646484876236,0.91881504,2662.7,2662.0,4.65433839]
[1646484876437,0.91881504,2662.7,2662.0,4.65716863]
[1646484877386,0.91881504,2662.7,2662.0,4.65433839]
[1646484877586,0.91881504,2662.7,2662.0,4.65716863]
[1646484878586,6.714e-05,2662.7,2662.0,4.65433839]
[1646484878885,6.714e-05,2662.7,2662.0,4.65716863]
[1646484879687,6.714e-05,2662.7,2662.0,4.65433839]
[1646484880089,6.714e-05,2662.7,2662.0,4.65708661]
[1646484880935,6.714e-05,2662.7,2662.0,4.65433839]
[1646484881337,6.714e-05,2662.7,2662.0,4.65708661]
[1646484882135,6.714e-05,2662.7,2662.0,4.65433839]
[1646484882338,6.714e-05,2662.7,2662.0,4.65708661]
[1646484882537,6.714e-05,2662.7,2662.0,3.50517057]
[1646484883338,6.714e-05,2662.7,2662.0,0.00242235]
[1646484883539,1.03146396,2662.1,2662.0,0.00503861]
[1646484883743,1.03146396,2662.1,2662.0,0.00261626]
[1646484883744,1.02146396,2662.1,2662.0,0.00261626]
[1646484883942,1.1682,2662.5,2662.0,0.00261626]
[1646484884540,1.1682,2662.5,2661.8,0.00242235]
[1646484885388,1.10679659,2662.2,2661.8,0.00242235]
[1646484885593,1.10679659,2662.2,2661.7,1.97325522]
[1646484885793,1.10679659,2662.2,2661.7,4.47325522]
[1646484886391,1.10679659,2662.2,2661.6,14.87138972]
[1646484886593,1.10679659,2662.2,2661.6,15.87138972]
[1646484886793,1.10679659,2662.2,2661.7,3.5]
[1646484886995,1.1682,2662.5,2661.7,3.5]
[1646484887194,1.1682,2662.5,2661.8,0.00296345]
[1646484887393,1.1682,2662.5,2661.8,0.0053858]
[1646484888197,1.1682,2662.5,2662.2,0.99153971]
[1646484888449,0.95163789,2662.7,2662.0,0.00296333]
[1646484889438,0.95163789,2662.7,2661.8,0.00242235]
[1646484889635,0.95163789,2662.7,2662.0,0.96971358]
[1646484889836,0.95163789,2662.7,2661.7,0.04943847]
[1646484889837,8.25850142,2662.6,2661.7,0.04943847]
[1646484890040,8.25850142,2662.6,2661.6,14.68368972]
[1646484890041,3.68683815,2662.3,2661.6,14.68368972]
[1646484890241,0.01256261,2662.1,2661.6,14.68368972]
[1646484890440,0.01256261,2662.1,2661.6,13.04058769]
[1646484890441,0.68683815,2662.0,2661.6,13.04058769]
[1646484890644,6.5,2661.9,2661.6,12.48796334]
[1646484890844,1.69933249,2661.8,2661.6,12.48796334]
[1646484891242,3.0,2661.9,2661.6,12.48796334]
[1646484891243,0.68683815,2661.9,2661.6,12.48796334]
[1646484891443,1.452,2662.0,2661.6,12.48796334]
[1646484891444,0.87453815,2662.1,2661.6,12.48796334]
[1646484891647,2.76069898,2662.3,2661.6,12.48796334]
[1646484891648,0.68683815,2662.3,2661.6,12.48796334]
[1646484892043,0.68683815,2662.3,2661.6,12.48938576]
[1646484892290,1.14836357,2662.3,2661.6,12.48938576]
[1646484892690,3.5,2662.2,2661.6,12.48938576]
[1646484892893,3.5,2662.2,2661.6,12.48796334]
[1646484892894,0.68683815,2662.0,2661.6,12.48796334]
[1646484893091,3.68683815,2661.8,2661.6,12.48796334]
[1646484893290,5.72735709,2661.7,2661.6,12.48796334]
[1646484893491,3.09201637,2661.7,2661.6,12.48796334]
[1646484893891,5.0,2661.6,2661.2,0.01015982]
[1646484894091,3.0,2661.4,2661.2,0.00774992]
[1646484894290,16.50051894,2661.5,2661.2,0.00774992]
[1646484894291,1.72821894,2661.3,2661.2,0.00774992]
[1646484894491,5.04051894,2661.3,2661.2,0.00774992]
[1646484894691,5.04051894,2661.3,2661.2,0.04924484]
[1646484894890,5.0,2661.2,2660.6,0.0059723]
[1646484895090,5.0,2661.2,2661.0,0.01549984]
[1646484895091,5.04051894,2661.1,2661.0,0.01549984]
[1646484895291,1.54051894,2661.1,2661.0,0.01549984]
[1646484895491,1.54051894,2661.2,2661.0,0.01549984]
[1646484895951,13.00051894,2661.2,2661.0,9.984e-05]
[1646484896137,1.54051894,2661.1,2661.0,9.984e-05]
[1646484896738,6.04051894,2661.1,2661.0,9.984e-05]
[1646484897341,2.54051894,2661.1,2661.0,9.984e-05]
[1646484897742,1.0,2661.1,2661.0,9.984e-05]
[1646484898343,6.04088341,2661.1,2661.0,9.984e-05]
[1646484899046,2.54088341,2661.1,2661.0,9.984e-05]
[1646484899884,17.00088341,2661.1,2661.0,9.984e-05]
[1646484900085,17.45288341,2661.1,2661.0,9.984e-05]
[1646484900285,18.45288341,2661.1,2661.0,9.984e-05]
[1646484900487,19.45288341,2661.1,2661.0,9.984e-05]
[1646484900884,5.18058341,2661.1,2661.0,9.984e-05]
[1646484901085,16.64058341,2661.1,2661.0,9.984e-05]
[1646484901493,16.64058341,2661.1,2660.6,0.0059723]
[1646484901687,1.72878341,2661.0,2660.6,0.0059723]
[1646484901888,11.6479,2661.0,2660.6,0.0035624]
[1646484902086,0.1879,2661.0,2660.6,0.0035624]
[1646484902293,1.0,2661.1,2660.6,0.0035624]
[1646484902689,1.0,2661.1,2660.7,0.01196304]
[1646484903090,1.0,2661.1,2660.9,1.23352729]
[1646484903738,0.2276,2661.2,2660.9,1.23352729]
[1646484904139,0.2276,2661.2,2660.9,1.2365572]
[1646484905140,0.2276,2661.2,2660.9,1.23352729]
[1646484905340,0.2276,2661.2,2660.9,1.23655723]
[1646484905642,0.2276,2661.2,2660.9,0.00302994]
[1646484906342,0.2276,2661.2,2660.7,0.01196304]
[1646484906642,1.02241079,2661.1,2660.9,0.00302994]
[1646484907290,0.2276,2661.2,2660.9,0.00302994]
[1646484907492,0.2276,2661.2,2660.7,0.01196304]
[1646484907691,0.2276,2661.2,2660.9,0.00302991]
[1646484908192,0.89880652,2661.1,2660.9,0.00302991]
[1646484908591,0.89880652,2661.1,2660.7,0.01196304]
[1646484908992,0.89880652,2661.1,2660.9,0.00293904]
[1646484909194,1.89880652,2661.1,2660.9,0.00293904]
[1646484909391,0.89880652,2661.1,2660.9,0.00293904]
[1646484909792,0.89880652,2661.1,2660.7,0.01196304]
[1646484910194,0.2276,2661.2,2660.7,0.01196304]
[1646484910394,0.2276,2661.2,2660.9,0.00293901]
[1646484911040,0.2276,2661.2,2660.7,0.01196304]
[1646484911241,1.100722,2661.1,2660.7,0.01196304]
[1646484911444,1.100722,2661.1,2660.9,0.00293904]
[1646484912244,1.100722,2661.1,2660.7,0.01196304]
[1646484912644,1.100722,2661.1,2660.9,0.00280195]
[1646484913544,1.0,2661.6,2660.7,0.01196304]
[1646484913744,0.1877,2661.5,2660.7,0.01196304]
[1646484913945,0.19050128,2661.5,2660.9,0.00280195]
[1646484914349,0.19050128,2661.5,2660.6,0.0142496]
[1646484914350,11.46,2661.2,2660.6,0.0142496]
[1646484914545,0.00679128,2660.8,2660.6,0.0142496]
[1646484914790,1.0,2660.7,2660.6,0.0142496]
[1646484916792,2.01888514,2660.7,2660.6,0.0142496]
[1646484918449,3.56010057,2660.7,2660.6,0.0142496]
[1646484919941,2.01888514,2660.7,2660.6,0.0142496]
[1646484921143,1.0,2660.7,2660.6,0.0142496]
[1646484921643,0.00679128,2660.8,2660.6,0.0142496]
[1646484922296,0.00679128,2660.8,2660.6,0.92522445]
[1646484923494,0.00679128,2660.8,2660.6,0.92825186]
[1646484924096,0.00679128,2660.8,2660.6,0.01727701]
[1646484924393,0.00679128,2660.8,2660.6,0.0142496]
[1646484924597,0.00679128,2660.8,2660.6,0.01727701]
[1646484924995,1.5412233,2660.7,2660.6,0.01727701]
[1646484925195,0.92997973,2660.7,2660.6,0.01727701]
[1646484925595,0.87997973,2660.7,2660.6,0.01727701]
[1646484925794,0.87997973,2660.7,2660.6,0.0142496]
[1646484928643,1.87997973,2660.7,2660.6,0.0142496]
[1646484928844,3.42115406,2660.7,2660.6,0.0142496]
[1646484929892,2.42115406,2660.7,2660.6,0.0142496]
[1646484930189,1.54117433,2660.7,2660.6,0.0142496]
[1646484930388,0.00679128,2660.8,2660.6,0.0142496]
[1646484931194,0.00679128,2660.8,2660.6,1.20851328]
[1646484932091,0.00679128,2660.8,2660.6,1.21111422]
[1646484932496,0.00679128,2660.8,2660.6,0.01685054]
[1646484932895,1.54107581,2660.7,2660.6,0.0142496]
[1646484933097,1.54107581,2660.7,2660.6,0.01685054]
[1646484933295,0.00679128,2660.8,2660.6,0.01685054]
[1646484934138,0.00679128,2660.8,2660.6,0.0142496]
[1646484934338,0.00679128,2660.8,2660.6,0.01685054]
[1646484934938,0.02465629,2660.5,2660.2,0.01040532]
[1646484935141,1.5410365,2660.4,2660.2,0.01040532]
[1646484935540,1.5410365,2660.4,2660.0,0.0164778]
[1646484935738,1.07181017,2660.3,2660.0,0.0164778]
[1646484935937,1.5410365,2660.2,2660.0,0.0164778]
[1646484936338,1.07181017,2660.3,2660.0,0.0164778]
[1646484937188,1.54121662,2660.2,2660.0,0.0164778]
[1646484938997,1.57068909,2660.2,2660.0,0.0164778]
[1646484939195,1.57068909,2660.2,2660.0,0.01950554]
[1646484939196,0.02947247,2660.2,2660.0,0.01950554]
[1646484940199,0.02947247,2660.2,2660.0,0.0164778]
[1646484940403,0.02947247,2660.2,2660.0,0.01950554]
[1646484941344,0.02947247,2660.2,2660.0,0.0164778]
[1646484941546,0.02947247,2660.2,2660.0,0.01950554]
[1646484942648,0.02947247,2660.2,2660.0,0.0164778]
[1646484942649,1.54129196,2660.1,2660.0,0.0164778]
[1646484942848,1.54129196,2660.1,2660.0,0.01950554]
[1646484943751,1.54129196,2660.1,2660.0,0.0164778]
[1646484948451,0.02947247,2660.2,2660.0,0.0164778]
[1646484949243,1.54132431,2660.1,2660.0,0.0164778]
[1646484949644,1.54132431,2660.3,2660.0,0.0164778]
[1646484949842,1.54132431,2660.2,2660.0,0.0164778]
[1646484950042,1.54132431,2660.1,2660.0,0.0164778]
[1646484950443,1.54132431,2660.3,2660.0,0.0164778]
[1646484950746,1.18690766,2660.4,2660.0,0.0164778]
[1646484950747,1.54132431,2660.2,2660.0,0.0164778]
[1646484950943,1.54132431,2660.1,2660.0,0.0164778]
[1646484951145,1.54132431,2660.3,2660.0,0.01928617]
[1646484952189,1.54132431,2660.3,2660.0,0.0164778]
[1646484952393,1.54132431,2660.3,2660.0,0.01928617]
[1646484953395,1.54132431,2660.3,2660.0,0.0164778]
[1646484953596,1.54132431,2660.3,2660.0,0.01928617]
[1646484954494,0.03313874,2660.1,2660.0,0.0164778]
[1646484954896,1.57446305,2660.1,2660.0,0.01929506]
[1646484955696,1.57446305,2660.1,2660.0,0.0164778]
[1646484957143,1.57353743,2660.1,2660.0,0.0164778]
[1646484958045,0.03221312,2660.1,2660.0,0.0164778]
[1646484959350,1.57346069,2660.1,2660.0,0.0164778]
[1646484961600,1.57346069,2660.1,2660.0,0.94921916]
[1646484961911,1.57346069,2660.1,2660.0,0.0164778]
[1646484963101,0.02468128,2659.9,2659.4,0.0011235]
[1646484963299,1.54124757,2659.8,2659.5,0.01126672]
[1646484964151,0.96227313,2659.7,2659.4,0.01744816]
[1646484964352,0.96227313,2659.7,2659.5,0.00281645]
[1646484964851,1.54154992,2659.6,2659.5,0.00281645]
[1646484965452,1.54154992,2659.6,2659.4,0.01744816]
[1646484965653,1.54154992,2659.6,2659.4,0.02026676]
[1646484966555,1.54154992,2659.6,2659.4,0.01744816]
[1646484966955,1.54154992,2659.6,2659.4,0.02026678]
[1646484967793,1.54154992,2659.6,2659.4,0.01744816]
[1646484967994,1.54154992,2659.6,2659.4,0.02026678]
[1646484968896,0.96227313,2659.7,2659.4,0.01744816]
[1646484969394,0.02468128,2659.9,2659.4,0.02026454]
[1646484969596,0.03367704,2659.6,2659.4,0.02026454]
[1646484970098,0.03367704,2659.6,2659.4,0.01744816]
[1646484970495,0.03367704,2659.6,2659.5,1.17533975]
[1646484973646,0.00835832,2659.9,2659.5,1.17533975]
[1646484973845,1.54139987,2659.8,2659.5,1.17533975]
[1646484974245,0.02625171,2659.6,2659.4,0.02026467]
[1646484974892,1.54155957,2659.5,2659.4,0.02026467]
[1646484975093,1.54155957,2659.5,2659.4,0.01744816]
[1646484975295,1.54155957,2659.5,2659.4,0.0202647]
[1646484975493,0.02625171,2659.6,2659.4,0.0202647]
[1646484975494,5.171e-05,2659.6,2659.4,0.8999586]
[1646484975694,5.171e-05,2659.6,2659.5,3.5]
[1646484975895,5.171e-05,2659.6,2659.5,3.952]
[1646484976296,5.171e-05,2659.6,2659.5,4.952]
[1646484978098,5.171e-05,2659.6,2659.5,1.452]
[1646484978298,5.171e-05,2659.6,2659.5,3.952]
[1646484978742,5.171e-05,2659.6,2659.5,4.952]
[1646484979741,0.00835832,2659.9,2659.5,1.452]
[1646484979942,0.00835832,2659.9,2659.8,1.17178567]
[1646484980241,0.00835832,2659.9,2659.8,1.62378567]
[1646484981242,0.00835832,2659.9,2659.8,0.452]
[1646484981448,0.00835832,2659.9,2659.5,1.1319235]
[1646484981643,0.00835832,2659.9,2659.6,3.40573748]
[1646484982496,1.19930817,2659.9,2659.6,3.40573748]
[1646484984297,0.00835832,2659.9,2659.6,3.40573748]
[1646484984899,0.00835832,2659.9,2659.6,3.40722377]
[1646484985947,0.00835832,2659.9,2659.6,3.40573748]
[1646484986554,0.00835832,2659.9,2659.4,4.8409273]
[1646484986555,2.5,2659.8,2659.3,0.0011235]
[1646484986756,3.5,2659.7,2659.2,0.0189677]
[1646484986953,0.68683815,2659.7,2659.2,0.0200912]
[1646484987152,3.5,2659.6,2659.2,0.0189677]
[1646484987354,0.68683815,2659.8,2659.2,0.0189677]
[1646484987553,0.68683815,2659.7,2659.2,0.0189677]
[1646484987756,1.85762699,2659.9,2659.2,0.0189677]
[1646484987958,1.15845832,2659.9,2659.2,0.0189677]
[1646484988355,5.34529647,2659.9,2659.2,0.0189677]
[1646484988554,0.9189766,2659.6,2659.2,0.0189677]
[1646484989554,1.84529647,2659.9,2659.2,0.0189677]
[1646484989555,1.15845832,2659.9,2659.2,0.0189677]
[1646484989794,1.15845832,2659.9,2659.3,0.00291381]
[1646484990596,0.97383175,2659.4,2659.2,0.0189677]
[1646484992002,0.97383175,2659.4,2658.9,0.0011235]
[1646484992003,0.0290265,2659.1,2658.9,0.0011235]
[1646484992202,0.0290265,2659.1,2658.8,0.01116105]
[1646484992203,1.13438771,2659.0,2658.8,0.01116105]
[1646484993206,1.13438771,2659.0,2658.7,3.0]
[1646484993460,0.0290265,2659.1,2658.8,0.00279007]
[1646484994354,0.0290265,2659.1,2658.7,3.0]
[1646484994551,0.97861694,2658.9,2658.7,3.0]
[1646484994756,0.0290265,2659.1,2658.7,3.0]
[1646484995553,1.54187208,2659.0,2658.7,3.0]
[1646484995753,1.54187208,2659.0,2658.7,2.95]
[1646484996054,1.13692313,2659.1,2658.7,2.95]
[1646484996453,1.5418967,2659.0,2658.7,2.95]
[1646484998202,1.5418967,2659.0,2658.7,2.95279549]
[1646484998402,5.0418967,2659.0,2658.7,2.95279549]
[1646484998602,1.5418967,2658.9,2658.7,2.95279549]
[1646484998803,1.13692313,2659.1,2658.7,2.95279549]
[1646484999002,1.54195166,2659.0,2658.7,2.95]
[1646484999804,5.04195166,2659.0,2658.7,2.95]
[1646485000003,1.54195166,2658.9,2658.7,2.95]
[1646485000203,1.54195166,2658.9,2658.7,2.94889016]
[1646485000403,1.13692313,2659.1,2658.7,2.94889016]
[1646485000404,1.54195166,2658.8,2658.7,2.94889016]
[1646485000606,3.5,2658.8,2658.4,0.0173176]
[1646485000961,2.71256872,2658.7,2658.4,0.0173176]
[1646485001151,1.54195166,2658.6,2658.4,0.0173176]
[1646485002256,5.04195166,2658.6,2658.4,0.0173176]
[1646485002453,1.17061706,2658.7,2658.4,0.0173176]
[1646485002454,5.04195166,2658.5,2658.4,0.0173176]
[1646485002655,1.54195166,2658.5,2658.4,0.0173176]
[1646485003053,1.54195166,2658.5,2658.4,0.0187958]
[1646485003958,1.54195166,2658.5,2658.4,0.0173176]
[1646485005001,2.1982,2659.0,2658.4,0.0173176]
[1646485005003,1.1982,2659.0,2658.4,0.0173176]
[1646485005203,1.54226586,2658.9,2658.4,0.0173176]
[1646485005902,0.92346436,2658.6,2658.4,0.0173176]
[1646485006702,0.92346436,2658.6,2658.5,0.00301019]
[1646485006904,1.1982,2659.0,2658.5,0.00301019]
[1646485007107,1.54224811,2658.9,2658.5,0.00301019]
[1646485007512,1.54224811,2658.9,2658.4,0.0173176]
[1646485007912,1.54224811,2658.9,2658.6,0.00301014]
[1646485008310,0.88888502,2658.8,2658.6,0.00301014]
[1646485008750,0.88888502,2658.8,2658.4,0.0173176]
[1646485008951,0.88888502,2658.8,2658.6,0.00301014]
[1646485009149,1.54231585,2658.7,2658.6,0.00301014]
[1646485010050,1.54231585,2658.7,2658.4,0.0173176]
[1646485010250,1.54231585,2658.7,2658.5,0.00301019]
[1646485010450,0.88888502,2658.8,2658.5,0.00301019]
[1646485011051,0.88888502,2658.8,2658.4,0.0173176]
[1646485011651,1.54226835,2658.7,2658.4,0.0173176]
[1646485012053,5.04226835,2658.7,2658.4,0.0173176]
[1646485012303,0.02165342,2658.0,2657.9,0.01331132]
[1646485012502,0.02165342,2658.0,2657.9,0.04794652]
[1646485017254,0.02165342,2658.0,2657.9,0.91422927]
[1646485018054,0.02165342,2658.0,2657.9,0.04794652]
[1646485019155,0.02165342,2658.0,2657.9,1.21138157]
[1646485020902,0.02165342,2658.0,2657.9,0.04794652]
[1646485021705,0.57454192,2658.0,2657.9,0.04794652]
[1646485023108,0.02165342,2658.0,2657.9,0.04794652]
[1646485034464,3.5290265,2659.1,2658.0,5.376]
[1646485034704,1.54209504,2659.0,2658.2,0.376]
[1646485034902,1.54209504,2659.0,2658.4,0.376]
[1646485035107,1.54209504,2659.0,2658.6,0.376]
[1646485035305,1.54209504,2659.0,2658.7,1.7686022]
[1646485035507,0.0290265,2659.1,2658.9,0.376]
[1646485035705,0.0290265,2659.1,2659.0,0.452]
[1646485036507,0.0290265,2659.1,2659.0,0.828]
[1646485036707,2.65e-05,2659.1,2659.0,0.828]
[1646485040476,2.65e-05,2659.1,2659.0,12.288]
[1646485040877,2.65e-05,2659.1,2659.0,13.288]
[1646485041078,0.38435832,2659.9,2659.2,11.836]
[1646485041279,1.54158885,2659.8,2659.4,0.9403706]
[1646485041481,1.54158885,2659.8,2659.4,1.7683706]
[1646485041981,1.54158885,2659.8,2659.6,0.96836593]
[1646485042409,0.00835832,2659.9,2659.7,0.452]
[1646485045112,0.00835832,2659.9,2659.7,0.45499161]
[1646485046156,0.00835832,2659.9,2659.7,0.452]
[1646485046456,0.00835832,2659.9,2659.7,0.45499161]
[1646485047058,0.00835832,2659.9,2659.4,1.1332]
[1646485047059,1.1263625,2659.6,2659.4,1.1332]
[1646485047263,1.1263625,2659.6,2659.1,1.452]
[1646485047663,1.1263625,2659.6,2659.1,0.452]
[1646485047863,2.19030789,2659.6,2659.1,1.37180086]
[1646485048763,2.19030789,2659.6,2659.1,0.452]
[1646485049999,2.19030789,2659.6,2659.2,0.00299474]
[1646485051004,2.19030789,2659.6,2658.7,1.19062]
[1646485051204,2.19030789,2659.6,2659.3,0.00299471]
[1646485052106,2.19030789,2659.6,2658.8,0.91847155]
[1646485052307,2.19030789,2659.6,2659.3,0.00299468]
[1646485053305,2.19030789,2659.6,2658.8,0.91847155]
[1646485053554,2.19030789,2659.6,2659.3,0.00299468]
[1646485054453,2.19030789,2659.6,2658.7,1.19062]
[1646485054653,2.19030789,2659.6,2658.7,0.25]
[1646485054654,1.02503012,2659.0,2658.7,0.25]
[1646485054852,1.02503012,2659.0,2658.9,0.01158518]
[1646485055654,1.02503012,2659.0,2658.6,0.10625004]
[1646485056059,1.02503012,2659.0,2658.8,0.00289612]
[1646485056858,1.02503012,2659.0,2658.6,0.10625004]
[1646485057304,1.02503012,2659.0,2658.8,0.00289614]
[1646485058205,1.02503012,2659.0,2658.6,0.10625004]
[1646485058404,1.02503012,2659.0,2658.8,0.00276858]
[1646485059405,1.02503012,2659.0,2658.6,0.10625004]
[1646485059605,1.02503012,2659.0,2658.8,0.00276858]
[1646485060607,1.02503012,2659.0,2658.6,0.10625004]
[1646485060807,1.02503012,2659.0,2658.8,0.00276858]
[1646485061856,1.02503012,2659.0,2658.6,0.10625004]
[1646485062055,1.02503012,2659.0,2658.8,0.00277719]
[1646485062354,2.4992625,2659.6,2658.8,0.00277719]
[1646485062554,1.54204445,2659.5,2658.8,0.00277719]
[1646485062955,1.54204445,2659.5,2658.6,0.10625004]
[1646485063156,1.54204445,2659.5,2659.1,0.00277705]
[1646485063555,1.18197076,2659.4,2659.1,0.00277705]
[1646485063758,1.54204445,2659.3,2659.1,0.00277705]
[1646485064158,1.04400835,2659.0,2658.6,0.10625004]
[1646485064359,1.03300935,2659.0,2658.7,0.00011977]
[1646485064800,2.3112625,2659.6,2658.7,0.00011977]
[1646485065002,1.54190498,2659.5,2658.7,0.00011977]
[1646485065401,1.54190498,2659.5,2658.6,0.10625004]
[1646485066005,1.54190498,2659.5,2658.8,1.1108126]
[1646485066605,2.3112625,2659.6,2658.8,1.1108126]
[1646485066805,2.3112625,2659.6,2658.8,1.5628126]
[1646485067004,1.16158112,2659.3,2658.8,1.5628126]
[1646485067206,3.5,2659.5,2658.8,0.452]
[1646485067411,0.01256453,2658.9,2657.9,0.51613987]
[1646485067609,0.01256453,2658.9,2657.9,0.26331132]
[1646485067610,1.1883036,2658.7,2657.9,0.26331132]
[1646485067810,1.1883036,2658.7,2657.9,0.01331132]
[1646485068458,1.08086719,2658.4,2657.9,0.92467659]
[1646485068849,1.1883036,2658.7,2657.9,0.92467659]
[1646485069250,1.1883036,2658.7,2658.0,0.0029954]
[1646485070055,1.1842286,2658.7,2657.9,0.92467659]
[1646485070257,0.99663809,2658.4,2657.9,0.01331132]
[1646485070457,0.99663809,2658.4,2658.2,0.00299529]
[1646485071255,0.99663809,2658.4,2657.9,0.01331132]
[1646485071460,1.1842286,2658.7,2657.9,0.01331132]
[1646485071660,1.54231045,2658.6,2657.9,0.01331132]
[1646485072707,1.01319528,2658.5,2657.9,0.01331132]
[1646485074108,1.01319528,2658.5,2658.1,0.00298073]
[1646485074507,1.00408874,2658.5,2658.1,0.00298073]
[1646485074907,1.00408874,2658.5,2657.9,0.01331132]
[1646485075107,1.23221253,2658.1,2657.9,0.01331132]
[1646485075308,1.1659,2658.6,2657.9,0.01331132]